Cogmind - Beta 15 @@@ ROGUE MODE // 2025.06.01 @ 15:20:27 Player: Nisakard Result: Destroyed by N6-C2N(R) with Subdweller Laser Performance ------------- Evolutions (0) 0 Regions Visited (2) 400 Robots Destroyed (38) 190 Value Destroyed (946) 946 Prototype IDs (2) 40 Alien Tech Used (0) 0 Bonus (0) 0 TOTAL SCORE: 1576 Bonus ------- None Cogmind --------- Core Integrity 0/250 Matter 276/300 Energy 189/200 System Corruption 0% Temperature Cool (11) Movement Core (550) Ox10 Location -10/Subcaves Parts ------- > --- POWER (1) -------- Subdweller Power Source > --- PROPULSION (2) --- (None) > --- UTILITY (2) ------ Large Storage Unit > --- WEAPON (2) ------- Advanced Beam Cannon Advanced Beam Cannon > --- INVENTORY (15) --- Subdweller Power Source Subdweller Monowheel Subdweller Monowheel Improved Heat Sink Subdweller Optics Subdweller Optics Heavy Riot Gun Subdweller Laser Autogun Autogun Autogun Autogun Subdweller Machine Gun Subdweller Machine Gun Subdweller Shrapnel Launcher Peak State ------------ > --- POWER ------------ Light Nuclear Core > --- PROPULSION ------- Light Treads Light Treads > --- UTILITY ---------- Large Storage Unit Signal Interpreter > --- WEAPON ----------- Autogun Autogun > --- INVENTORY -------- Subdweller Power Source Light Nuclear Core Subdweller Monowheel Improved Heat Sink Large Matter Pod Subdweller Optics Heavy Riot Gun Advanced Beam Cannon Advanced Beam Cannon Autogun Autogun Subdweller Machine Gun Subdweller Machine Gun Grenade Launcher Grenade Launcher [Rating: 14] Favorites ----------- Power Light Nuclear Core Engine Light Ion Engine Power Core Light Nuclear Core Propulsion Light Treads Treads Light Treads Leg Aluminum Leg Utility Signal Interpreter Device Improved Terrain Scanner Storage Large Storage Unit Processor Signal Interpreter Weapon Grenade Launcher Energy Gun Medium Laser Energy Cannon Advanced Beam Cannon Ballistic Gun Autogun Launcher Grenade Launcher Build | -11 -10 -10 ------- Run | Yrd Mat Sub Slots Evolved . | . . . Power . | . . . Propulsion . | . . . Utility . | . . . Weapon . | . . . Parts Attached 30 | 10 12 8 Power 6 | 1 4 1 Engine 4 | 1 2 1 Core 2 | . 2 . Reactor . | . . . Propulsion 6 | 4 2 . Treads 4 | 2 2 . Leg 2 | 2 . . Wheel . | . . . Hover . | . . . Flight . | . . . Utility 6 | 3 3 . Device 1 | 1 . . Storage 4 | 2 2 . Processor 1 | . 1 . Hackware . | . . . Protection . | . . . Artifact . | . . . Weapon 12 | 2 3 7 Energy Gun 3 | 2 1 . Energy Cannon 2 | . . 2 Ballistic Gun 3 | . 2 1 Ballistic Cannon . | . . . Launcher 4 | . . 4 Special Weapon . | . . . Impact Weapon . | . . . Slashing Weapon . | . . . Piercing Weapon . | . . . Special Melee Weapon . | . . . Unidentified Prototypes . | . . . Parts Lost 9 | . 1 8 Power 2 | . . 2 Propulsion 3 | . . 3 Utility 1 | . 1 . Weapon 3 | . . 3 Highest Loss Streak 3 | . 1 3 To Critical Strikes . | . . . Average Backups 10 | 2 8 13 Power 1 | . 1 1 Propulsion 1 | 1 2 1 Utility 1 | . . 2 Weapon 6 | . 4 8 Tool/Special . | . . . Unused Backups 18 | . 5 13 Power 4 | . 2 2 Propulsion 4 | . 2 2 Utility 3 | . . 3 Weapon 7 | . 1 6 Tool/Special . | . . . Average Slot Usage (%) 90 | . 99 82 Engine 1 | . 2 . Core 12 | . 11 13 Treads 25 | . 28 22 Device 1 | . 3 . Storage 14 | . 14 14 Processor 8 | . 9 7 Energy Gun 7 | . 15 . Energy Cannon 3 | . . 7 Ballistic Gun 6 | . 12 . Launcher 8 | . . 16 Peak Build Rating 14 | 9 13 14 Average Rating 11 | 6 11 11 On Entrance 7 | . 9 13 Naked Turns . | . . . Heaviest Build 51 | 13 51 33 Greatest Support 40 | 40 40 40 Greatest Overweight (x) 10 | 2 1 10 Average Overweight (x) . | . . . Largest Inventory Capacity 20 | 8 20 15 Average Capacity 12 | 7 11 15 Most Carried 15 | 4 13 15 Average Carried 10 | 2 8 13 Final Capacity 15 | 8 15 15 Final Carried 15 | 4 13 15 Class Distribution -------------------- 100% | Mutant Dominant Class ---------------- Mutant | -10/Materials Mutant | -10/Subcaves Resources | -11 -10 -10 ----------- Run | Yrd Mat Sub Matter Collected 1115 | 249 378 488 Remotely . | . . . Salvage Created 980 | 66 567 347 Parts 71 | 3 44 24 Haulers Intercepted 1 | . 1 . Recyclers Shooed 2 | . 2 . Parts Field Recycled . | . . . Retrieved Matter . | . . . Parts Self-Destructed 11 | . . 11 Prevented . | . . . Kills | -11 -10 -10 ------- Run | Yrd Mat Sub Combat Hostiles Destroyed 28 | . 12 16 Guns 13 | . 11 2 Cannons 3 | . . 3 AOE 11 | . . 11 Classes Destroyed 8 | 2 4 2 Tunneler 2 | 1 1 . Hauler 1 | . 1 . Recycler 2 | 1 1 . Turret 2 | . . 2 Watcher 3 | . 3 . Swarmer 10 | . 6 4 Grunt 6 | . 6 . Subdweller 12 | . . 12 Best Kill Streak 4 | 1 4 4 Combat Bots Only 4 | . 2 4 Max Kills in Single Turn 2 | 1 1 2 Gunslinging . | . . . Exploded 2 | . . 2 Melee . | . . . Uniques/NPCs Destroyed . | . . . Combat | -11 -10 -10 -------- Run | Yrd Mat Sub Hostile Shots Fired 193 | . 53 140 Missed 66 | . 11 55 Hits 127 | . 42 85 Projectile 127 | . 42 85 Critical Strikes 2 | . 1 1 Damage Taken 1554 | . 456 1098 Core 264 | . 51 213 Absorbed by Shields . | . . . Core Remaining (%) 100 | 100 . . Volleys Fired 105 | 11 50 44 Largest 2 | 2 2 2 Hottest 136 | 90 115 136 Shots Fired 205 | 22 100 83 Gun 130 | 22 100 8 Cannon 36 | . . 36 Launcher 39 | . . 39 Special . | . . . Kinetic 16 | . 8 8 Thermal 150 | 22 92 36 Explosive 39 | . . 39 Electromagnetic . | . . . Robot Hit Streak 14 | 3 9 14 Robot Miss Streak 5 | 2 5 2 Penetration Max . | . . . Secondary Targets 2 | . 1 1 Max Gunslinging Chain 1 | . 1 1 Shots Hit Robots 112 | 12 50 50 Core Hits 66 | 3 27 36 Critical Kills . | . . . Critical Parts Destroyed . | . . . Critical Strikes 2 | . 2 . Burn 2 | . 2 . Melee Attacks . | . . . Impact . | . . . Slashing . | . . . Piercing . | . . . Sneak Attacks . | . . . Combat Hostiles . | . . . Follow-up Attacks . | . . . Damage Inflicted 2738 | 136 647 1955 Guns 844 | 136 647 61 Cannons 511 | . . 511 Explosions 1383 | . . 1383 Melee . | . . . Ramming . | . . . Kinetic 124 | . 63 61 Thermal 1231 | 136 584 511 Explosive 1383 | . . 1383 Electromagnetic . | . . . Impact . | . . . Slashing . | . . . Piercing . | . . . Highest Corruption . | . . . Average Corruption . | . . . Corruption Purged . | . . . Corruption Blocked . | . . . Overload Shots . | . . . Overflow Damage 13 | . . 13 Projectiles 12 | . . 12 Explosions 1 | . . 1 Melee . | . . . Knockbacks . | . . . Impact . | . . . Kinetic . | . . . Secondary . | . . . Self-Inflicted Damage 59 | . . 59 Shots 2 | . . 2 Rammed . | . . . Targets Rammed . | . . . Kicked . | . . . Crushed . | . . . Highest Temperature 360 | 105 360 113 Average Temperature 84 | 44 97 61 Received Heat Transfer 540 | . 162 378 Effects 1 | . 1 . Energy Bleed 1 | . 1 . Siege Activations . | . . . Martial Activations . | . . . Shielding Activations . | . . . Robots Disrupted . | . . . Combat Hostiles . | . . . Robots Corrupted . | . . . Combat Hostiles . | . . . Parts Fried . | . . . Impact Corruptions . | . . . Robots Melted 1 | . 1 . Combat Hostiles 1 | . 1 . Parts Melted 7 | 1 4 2 Heat Transferred 3005 | 348 1732 925 Parts Sabotaged . | . . . Parts Stolen . | . . . Parts Stripped . | . . . Power Chain Reactions . | . . . Alert | -11 -10 -10 ------- Run | Yrd Mat Sub Maximum Alert Level . | . . . Low Security (%) 100 | 100 100 . Level 1 . | . . . Level 2 . | . . . Level 3 . | . . . Level 4 . | . . . Level 5 . | . . . High Security . | . . . Max Security . | . . . Peak Influence 82 | 5 82 . Initial . | . . . Average 14 | . 16 . Influence Increases 767 | 10 382 375 Destroy 0b10 Robot/C 360 | . 240 120 Destroy 0b10 Robot/NC 40 | 10 30 . Destroy Leader 58 | . 58 . Successful Hack 23 | . 23 . Destroy Structure 1 | . 1 . Lose Combat Pursuer 285 | . 30 255 Influence Decreases 728 | 10 382 336 Time Decay 643 | 10 357 276 Lost Part 70 | . 10 60 Purge Threat 15 | . 15 . Squads Dispatched 2 | . 2 . Investigation 1 | . 1 . Extermination . | . . . Reinforcement 1 | . 1 . Assault . | . . . Garrison . | . . . Intercept . | . . . Searches Triggered . | . . . Construction Impeded . | . . . Haulers Reinforced . | . . . Active Scanning Responses . | . . . Cargo Convoy Interrupts . | . . . Stealth | -11 -10 -10 --------- Run | Yrd Mat Sub Distress Signals 1 | . 1 . Communications Jammed . | . . . Distress Signals . | . . . Times Spotted 45 | . 18 27 Peak Tracking Total 4 | . 4 4 Tactical Retreats 8 | . 2 6 Traps | -11 -10 -10 ------- Run | Yrd Mat Sub Traps Triggered 2 | . 2 . Indirectly . | . . . Trap Hack Attempts . | . . . Triggered . | . . . Disarmed . | . . . Reprogrammed . | . . . Reused . | . . . Traps Extracted . | . . . Installed . | . . . Triggered . | . . . Machines | -11 -10 -10 ---------- Run | Yrd Mat Sub Machines Disabled 3 | . . 3 Max in Single Turn 2 | . . 2 Machines Repaired . | . . . Machines Dismantled . | . . . Machines Sabotaged . | . . . Overloaded Fab Kills . | . . . Hacking | -11 -10 -10 --------- Run | Yrd Mat Sub Machines Accessed 8 | . 8 . Terminals 6 | . 6 . Fabricators . | . . . Repair Stations . | . . . Recycling Units 2 | . 2 . Scanalyzers . | . . . Garrison Access . | . . . Total Hacks 20 | . 20 . Successful 9 | . 9 . Failed 11 | . 11 . Catastrophic 4 | . 4 . Database Lockouts . | . . . Manual 7 | . 7 . Terminals 15 | . 15 . Fabricators . | . . . Repair Stations . | . . . Recycling Units 5 | . 5 . Scanalyzers . | . . . Garrison Access . | . . . Terminal Hacks 6 | . 6 . Robot Analysis 1 | . 1 . Prototype ID Bank 1 | . 1 . Recycling Unit Index 1 | . 1 . Unreport Threat 2 | . 2 . Registered Components 1 | . 1 . Fabricator Hacks . | . . . Repair Station Hacks . | . . . Recycling Unit Hacks 3 | . 3 . Report Inventory 2 | . 2 . Retrieve Components 1 | . 1 . Scanalyzer . | . . . Garrison Access Hacks . | . . . Unauthorized Hacks . | . . . Terminals . | . . . Fabricators . | . . . Repair Stations . | . . . Recycling Units . | . . . Scanalyzers . | . . . Garrison Access . | . . . Data Cores Recovered . | . . . Used . | . . . Hacking Detections 7 | . 7 . Full Trace Events . | . . . Feedback Events . | . . . Feedback Blocked . | . . . Robot Schematics Acquired . | . . . Robots Built . | . . . Authchips . | . . . Time . | . . . Total Robot Build Rating . | . . . Part Schematics Acquired . | . . . Parts Built . | . . . Authchips . | . . . Time . | . . . Total Part Build Rating . | . . . Parts Repaired . | . . . Time . | . . . Parts Recycled . | . . . Recycled Matter . | . . . Retrieved Matter . | . . . Retrieved Components 9 | . 9 . Parts Scanalyzed . | . . . Part Schematics Acquired . | . . . Parts Damaged . | . . . Bothacking | -11 -10 -10 ------------ Run | Yrd Mat Sub Used RIF Installer . | . . . Robots Hacked . | . . . Non-combat . | . . . Combat . | . . . Robot Hacks Applied . | . . . Relay Couplers Released . | . . . Fabnet Peak Effective % . | . . . Robots Rewired . | . . . Allies Hacked . | . . . Hacks Repelled . | . . . Allies | -11 -10 -10 -------- Run | Yrd Mat Sub Total Allies . | . . . Largest Group . | . . . Highest-Rated Group . | . . . Highest-Rated Ally . | . . . Total Orders . | . . . Ally Attacks . | . . . Total Damage . | . . . Kills . | . . . Allies Corrupted . | . . . Allies Melted . | . . . Intel | -11 -10 -10 ------- Run | Yrd Mat Sub Active Infowar (turns) 546 | 44 502 . Terrain 546 | 44 502 . Robot Analysis Total 1 | . 1 . Derelict Logs Recovered . | . . . Drone Launches . | . . . Drone Recoveries . | . . . Exploration | -11 -10 -10 ------------- Run | Yrd Mat Sub Turns Passed 3779 | 151 1833 1795 Spaces Moved 1861 | 66 907 888 Core 19 | 6 . 13 Treads 1839 | 57 907 875 Legs 3 | 3 . . Wheels . | . . . Hover . | . . . Flight . | . . . Fastest Speed 50 | 50 160 160 Average Speed 175 | 151 170 183 Slowest Speed 550 | 160 240 550 Overloaded Moves . | . . . Propulsion Burnouts . | . . . Robots Hopped . | . . . Potential Cave-ins 3 | . . 3 Cave-ins Triggered . | . . . Exploration Rate (%) 44 | 6 96 30 Regions Visited 2 Branch Regions 1 Pre-discovered Areas . | . . . Known Exits Taken 1 | . 1 . Unknown Exits Taken 1 | 1 . . Scrap Searched . | . . . Spaces Dug . | . . . Terrain Destroyed 176 | . . 176 Melee . | . . . Projectile 2 | . . 2 AOE 174 | . . 174 Terrain Rammed . | . . . Walls Destroyed . | . . . Machines Disabled . | . . . Actions | -11 -10 -10 --------- Run | Yrd Mat Sub Total 2163 | 91 1098 974 Wait 109 | . 96 13 Move 1859 | 65 906 888 Hop . | . . . Pick Up 31 | 4 16 11 Fast Attach 10 | 8 1 1 Attach 5 | . . 5 Detach . | . . . Swap 23 | 2 14 7 Drop 21 | 1 15 5 Fire 105 | 11 50 44 Melee . | . . . Ram . | . . . Kick . | . . . Crush . | . . . Escape Stasis . | . . . Rewire . | . . . Trap . | . . . Miscellaneous . | . . . Route ------- -11/Scrapyard -10/Materials (discovered 5 exits: *Mat x3 / [*Min] / *Sub) -10/Subcaves (discovered 3 exits: *Mat / [*Rec] / *Scr) History --------- Turn | Location | Event 16 | -11/Scrapyard | Discovered new exit (range 16) 152 | -11/Scrapyard | Entered Materials 311 | -10/Materials | Build established: Mutant 321 | -10/Materials | Discovered new exit (range 12) 624 | -10/Materials | Discovered new exit (range 14) 760 | -10/Materials | Identified exit to Materials 975 | -10/Materials | Discovered new exit (range 5) 1079 | -10/Materials | Discovered exit to Materials (range 7) 1647 | -10/Materials | Discovered exit to Materials (range 10) 1982 | -10/Materials | Identified exit to Subcaves 1985 | -10/Materials | Entered Subcaves 1986 | -10/Subcaves | Approached by a straggling Scientist 2056 | -10/Subcaves | Ambushed by Subdweller buried in earth 2083 | -10/Subcaves | Ambushed by Subdweller buried in earth 2217 | -10/Subcaves | Discovered new exit (range 8) 2231 | -10/Subcaves | Identified exit to Materials 2572 | -10/Subcaves | Scientist uncovered a shortcut to Scraptown 2584 | -10/Subcaves | Identified exit to Scraptown 2843 | -10/Subcaves | Discovered new exit (range 14) 3300 | -10/Subcaves | Core integrity fell below 50% 3505 | -10/Subcaves | Disturbed a concealed Subdweller 3618 | -10/Subcaves | Shifting Twisted Machinery released Sub. Shrapnel Launcher 3692 | -10/Subcaves | Core integrity fell below 20% 3730 | -10/Subcaves | Lost 3 parts (1p2n) 3775 | -10/Subcaves | A Subdweller sparked back to life 3775 | -10/Subcaves | A Subdweller sparked back to life 3780 | -10/Subcaves | Destroyed by N6-C2N(R) with Subdweller Laser Last Messages --------------- Twisted Machinery. 03627_ Acquired Sub. Shrapnel Launcher. 03687_ Lgt. Nuclear Core destroyed. 03689_ Lgt. Treads destroyed. 03697_ Disposable Heat Sink melted. 03697_ BD-USZ(R) destroyed. 03699_ Lgt. Treads destroyed. 03703_ L1-QBM(R) affixes Scrap Shield Fragment to Scrap Shield. 03703_ Sub. Optics melted. 03703_ L1-QBM(R) destroyed. 03706_ Acquired 46 matter. 03711_ Acquired 50 matter. 03726_ Acquired Sub. Power Source. 03739_ Acquired Sub. Optics. 03751_ Acquired Sub. Laser. 03775_ FQ-LLF(R) creaks and sparks as it begins to move. 03775_ N6-C2N(R) creaks and sparks as it begins to move. Map ----- +----------------------------------------------------+ | ???????????????????????????## #????????????????? | | ???????????????????????????## ##????????????????? | | ???????????????????????????# #????????????????? | | ????????????????????????#### #????????????????? | | ????????????????????????# #????????????????? | | ????????????????????????# ##????????????????? | | ????????????????????????## #?????????????????? | | ?????????????????????????## #?????????????????? | | ?????????????#????????????# #?????????????????? | | ????????????# ???# ????## ####?????????????????? | | ????????????? ??# ????# ##???????????????????? | | ?????????????? #?# ????# ###?????????????????? | | ??????????????? ## ????# #?????????????????? | | ???????????????? ???## #?????????????????? | | ????????????????# ??## #?????????????????? | | ????????????????# ??# #?????????????????? | | ????????????????# ### #?????????????????? | | ????????????????# ## ##?????????????????? | | ?????????????????# ##* ##??????????????????? | | ?????????????????# ## & ##???????????????????? | | ?????????????????# & & #??????????######????? | | ?????????????????## = ##?#???????## ##???? | | ??????????????????## ##?## ??????# #???? | | ???????????????????## # ##??# ?##### ????? | | ???????????????????## # # #? # # # #?????? | | ???????????????????# ## @ ### ? ##????? | | ???????????????????# ## ## ? #????? | | ???????????????????## ### ? #????? | | ???????????????##### # # ### #??#?? | | ???????????????# # # # ## # #??? ## | | ???????????????## R## #??? "# | | ????????????????# R<# #??? " | | ????????????????# ### R < & # ##??#"" | | ????????????????# ####?? < #### ##?# | | ???????????????## ##????## ???## ### " | | ???????????????# #####?## & ????## " " | | ???????????????# ## #### # < ?????## "" | | ???????????????# ### ##"##?????## | | ??????????????## # #????????## | | ??????????????# #????????# | | ??????????#??### ##???????## | | ??????????# ##"#" #####????# ### | | ??????????#&# &* ###?## ### ### | | ??????????#" ## & # ### ### | | ??????????########! ## ## | | ?????????????????# #### ## | | ?????????????????# < ##??# | | ?????????????????## #???# | | ??????????????????## # #??## | | ??????????????????# # # #?# | +----------------------------------------------------+ Best States ------------- Heat Dissipation 25 Energy Generation 15 Energy Capacity 200 Matter Stores 300 Matter Capacity 300 Sight Range 16 Terrain Scan Range 16 Terrain Scan Density 10 Evasion (%) 40 Recoil Reduction 2 Item Schematics ----------------- None Robot Schematics ------------------ None Fabricated ------------ Nothing Repaired ---------- Nothing Alien Tech Used ----------------- None Achievements -------------- None Challenges ------------ None Game ------ Seed SmartStasisSystem Manual? 0 Play Time 00:20:12 Cumulative 4.6 hours Start 2025.06.01 @ 14:34:42 End 2025.06.01 @ 15:20:27 Sessions 1 Manual Loads 0 Difficulty Rogue Special Mode None Game No. 9 Rogue 9 Adventurer 0 Explorer 0 Win Type - Total 0 Types 0/0/0/0/0/0/0/0/0/0 Lore% 16 Gallery% 7 Achievement% 22 Wizard Run 0 Options --------- Layout 1 ASCII 0 Keyboard 0 Movement Numpad Keybinds 0 Fullscreen 2 Font 24/Smallcaps Map View 50x35 Zoom Use 0% Tactical HUD 1 Map Filters NONE Filters NONE Steam 1 RUN: ba1684be-71a0-4b8d-ac37-0297c473e9b4